[Event "Championnat du monde jeunes U10"]
[Date "2024.11.19"]
[White "Zhou, Guoyu"]
[Black "Xia, Joshua"]
[WhiteElo "1809"]
[BlackElo "2052"]
[Round "5.9"]
[Result "1/2-1/2"]
[TimeControl "5400+30"]

1. d4 {[%clk 1:30:56]} 1... Nf6 {[%clk 1:30:54]} 2. c4 {[%clk 1:31:11]} 2... g6
{[%clk 1:31:20]} 3. Nc3 {[%clk 1:31:32]} 3... d5 {[%clk 1:31:46]} 4. Nf3 {[%clk
1:31:42]} 4... Bg7 {[%clk 1:32:06]} 5. Qb3 {[%clk 1:31:31]} 5... dxc4 {[%clk
1:32:22]} 6. Qxc4 {[%clk 1:31:56]} 6... O-O {[%clk 1:32:45]} 7. e4 {[%clk
1:18:21]} 7... Nc6 {[%clk 1:32:58]} 8. Be2 {[%clk 1:14:47]} 8... e5 {[%clk
1:33:17]} 9. d5 {[%clk 1:12:51]} 9... Nd4 {[%clk 1:33:40]} 10. O-O {[%clk
1:11:32]} 10... Nxe2+ {[%clk 1:27:05]} 11. Nxe2 {[%clk 1:08:26]} 11... Ne8
{[%clk 1:26:24]} 12. Bg5 {[%clk 1:07:55]} 12... f6 {[%clk 1:24:58]} 13. Bh4
{[%clk 1:06:50]} 13... Nd6 {[%clk 1:24:33]} 14. Qc2 {[%clk 1:05:37]} 14... g5
{[%clk 1:19:42]} 15. Bg3 {[%clk 1:05:31]} 15... Bg4 {[%clk 1:19:00]} 16. Ne1
{[%clk 1:02:06]} 16... Bd7 {[%clk 1:15:38]} 17. Nc3 {[%clk 0:57:08]} 17... Qe8
{[%clk 1:10:40]} 18. f3 {[%clk 0:51:23]} 18... Qg6 {[%clk 1:09:35]} 19. Nd3
{[%clk 0:45:59]} 19... b6 {[%clk 1:06:06]} 20. Nb4 {[%clk 0:45:27]} 20... h5
{[%clk 1:00:20]} 21. Nc6 {[%clk 0:44:48]} 21... Rf7 {[%clk 0:55:17]} 22. a4
{[%clk 0:44:06]} 22... a6 {[%clk 0:51:00]} 23. a5 {[%clk 0:42:38]} 23... b5
{[%clk 0:50:17]} 24. b3 {[%clk 0:41:54]} 24... Kh7 {[%clk 0:47:47]} 25. Na2
{[%clk 0:34:15]} 25... Re8 {[%clk 0:45:51]} 26. Nab4 {[%clk 0:33:21]} 26... Bc8
{[%clk 0:45:24]} 27. Nd3 {[%clk 0:33:39]} 27... h4 {[%clk 0:41:29]} 28. Bf2
{[%clk 0:22:54]} 28... f5 {[%clk 0:38:09]} 29. Nc5 {[%clk 0:22:51]} 29... h3
{[%clk 0:35:35]} 30. Bg3 {[%clk 0:05:10]} 30... f4 {[%clk 0:34:37]} 31. Be1
{[%clk 0:04:57]} 31... Qh5 {[%clk 0:34:15]} 32. g4 {[%clk 0:02:21]} 32... fxg3
{[%clk 0:33:05]} 33. Bxg3 {[%clk 0:02:36]} 33... Rxf3 {[%clk 0:29:34]} 34. Rxf3
{[%clk 0:03:04]} 34... Qxf3 {[%clk 0:29:57]} 35. Rf1 {[%clk 0:03:30]} 35... Qh5
{[%clk 0:29:00]} 36. Nb4 {[%clk 0:02:28]} 36... Qg6 {[%clk 0:27:20]} 37. Nbxa6
{[%clk 0:01:01]} 37... Bxa6 {[%clk 0:27:05]} 38. Nxa6 {[%clk 0:01:28]} 38...
Nxe4 {[%clk 0:27:20]} 39. Nxc7 {[%clk 0:00:52]} 39... Rc8 {[%clk 0:27:38]} 40.
Rc1 {[%clk 0:00:53]} 40... Bf8 {[%clk 0:27:04]} 41. Qc6 {[%clk 0:00:53]} 41...
Qxc6 {[%clk 0:24:23]} 42. Rxc6 {[%clk 0:01:17]} 42... Bc5+ {[%clk 0:24:43]} 43.
Rxc5 {[%clk 0:00:58]} 43... Nxc5 {[%clk 0:25:03]} 44. Bxe5 {[%clk 0:01:24]}
44... Kg6 {[%clk 0:23:38]} 45. a6 {[%clk 0:01:13]} 45... Kf5 {[%clk 0:23:38]}
46. Bg3 {[%clk 0:01:11]} 46... Rxc7 {[%clk 0:21:52]} 47. Bxc7 {[%clk 0:01:40]}
47... Nxa6 {[%clk 0:22:08]} 48. Bd8 {[%clk 0:01:16]} 48... Nc5 {[%clk 0:21:46]}
49. d6 {[%clk 0:00:50]} 49... Ke6 {[%clk 0:08:25]} 50. Bxg5 {[%clk 0:01:10]}
50... Nxb3 {[%clk 0:08:45]} 51. Bf4 {[%clk 0:00:35]} 51... Nd4 {[%clk 0:08:35]}
52. Kf2 {[%clk 0:00:34]} 52... b4 {[%clk 0:08:41]} 53. d7 {[%clk 0:00:50]} 53...
Kxd7 {[%clk 0:08:58]} 54. Be5 {[%clk 0:01:17]} 54... Nf5 {[%clk 0:09:04]} 55.
Kf3 {[%clk 0:01:31]} 55... Ke6 {[%clk 0:09:16]} 56. Bb2 {[%clk 0:01:23]} 56...
Kd5 {[%clk 0:08:43]} 57. Kg4 {[%clk 0:01:37]} 57... Ne3+ {[%clk 0:08:58]} 58.
Kxh3 {[%clk 0:01:45]} 58... Nd1 {[%clk 0:09:13]} 59. Ba1 {[%clk 0:01:47]} 59...
Kc4 {[%clk 0:08:21]} 60. Kg3 {[%clk 0:02:04]} 1/2-1/2

[Variant "Standard"]
[Site "Europe Echecs"]

[Event "Championnat du monde jeunes U10"]
[Date "2024.11.19"]
[White "Filipovs, Sergejs"]
[Black "Anetov, Amirzhan"]
[WhiteElo "2012"]
[BlackElo "1767"]
[Round "5.10"]
[Result "1/2-1/2"]
[TimeControl "5400+30"]

1. e4 {[%clk 1:30:58]} 1... e5 {[%clk 1:30:57]} 2. Nf3 {[%clk 1:31:21]} 2... Nc6
{[%clk 1:31:27]} 3. d4 {[%clk 1:31:43]} 3... exd4 {[%clk 1:31:54]} 4. Nxd4
{[%clk 1:32:07]} 4... Bc5 {[%clk 1:32:21]} 5. Nxc6 {[%clk 1:32:30]} 5... Qf6
{[%clk 1:32:48]} 6. Qf3 {[%clk 1:32:46]} 6... bxc6 {[%clk 1:33:15]} 7. Be2
{[%clk 1:32:02]} 7... d5 {[%clk 1:26:01]} 8. exd5 {[%clk 1:30:59]} 8... cxd5
{[%clk 1:26:23]} 9. Bb5+ {[%clk 1:27:53]} 9... Kf8 {[%clk 1:26:10]} 10. Be3
{[%clk 1:23:24]} 10... Bxe3 {[%clk 1:25:33]} 11. Qxe3 {[%clk 1:23:48]} 11... c6
{[%clk 1:23:16]} 12. Qa3+ {[%clk 1:21:01]} 12... Qe7+ {[%clk 1:23:31]} 13. Be2
{[%clk 1:20:26]} 13... Qxa3 {[%clk 1:23:52]} 14. Nxa3 {[%clk 1:20:54]} 14... Bf5
{[%clk 1:23:18]} 15. O-O-O {[%clk 1:21:09]} 15... Nf6 {[%clk 1:23:06]} 16. c4
{[%clk 1:20:27]} 16... g6 {[%clk 1:19:48]} 17. cxd5 {[%clk 1:12:53]} 17... cxd5
{[%clk 1:20:09]} 18. Bd3 {[%clk 1:12:50]} 18... Rc8+ {[%clk 1:19:52]} 19. Kb1
{[%clk 1:12:25]} 19... Bxd3+ {[%clk 1:04:28]} 20. Rxd3 {[%clk 1:12:49]} 20...
Kg7 {[%clk 1:04:54]} 21. Nb5 {[%clk 1:07:18]} 21... a6 {[%clk 0:53:20]} 22. Nc3
{[%clk 1:06:37]} 22... Ne4 {[%clk 0:53:08]} 23. Nxe4 {[%clk 1:06:16]} 23... dxe4
{[%clk 0:53:32]} 24. Rd6 {[%clk 1:04:48]} 24... Rc5 {[%clk 0:51:34]} 25. Rc1
{[%clk 1:01:19]} 25... Rhc8 {[%clk 0:45:33]} 26. Rxc5 {[%clk 1:00:58]} 26...
Rxc5 {[%clk 0:45:59]} 27. b4 {[%clk 0:57:18]} 27... Rf5 {[%clk 0:42:35]} 28. Rd2
{[%clk 0:57:34]} 28... Kf6 {[%clk 0:42:43]} 29. Kb2 {[%clk 0:56:49]} 29... Ke6
{[%clk 0:42:53]} 30. Kc3 {[%clk 0:56:40]} 30... Rh5 {[%clk 0:38:42]} 31. h3
{[%clk 0:56:28]} 31... Rg5 {[%clk 0:38:56]} 32. g3 {[%clk 0:54:53]} 32... Rh5
{[%clk 0:35:42]} 33. Rd4 {[%clk 0:51:16]} 33... Ke5 {[%clk 0:34:10]} 34. h4
{[%clk 0:51:21]} 34... Rf5 {[%clk 0:34:22]} 35. Rd2 {[%clk 0:51:46]} 35... Rf3+
{[%clk 0:31:48]} 36. Kc4 {[%clk 0:51:20]} 36... Ra3 {[%clk 0:31:42]} 37. b5
{[%clk 0:44:04]} 37... axb5+ 38. Kxb5 {[%clk 0:44:26]} 38... f5 {[%clk 0:32:07]}
39. Kb4 {[%clk 0:44:26]} 39... Ra8 {[%clk 0:32:31]} 40. a4 {[%clk 0:44:16]}
40... h6 {[%clk 0:32:49]} 41. a5 {[%clk 0:44:30]} 41... g5 {[%clk 0:33:15]} 42.
hxg5 {[%clk 0:44:57]} 42... hxg5 {[%clk 0:33:06]} 43. Kb5 {[%clk 0:45:21]} 43...
f4 {[%clk 0:31:22]} 44. gxf4+ {[%clk 0:45:43]} 44... gxf4 {[%clk 0:31:42]} 45.
a6 {[%clk 0:46:04]} 45... e3 {[%clk 0:32:06]} 46. fxe3 {[%clk 0:46:27]} 46...
fxe3 {[%clk 0:32:33]} 47. Ra2 {[%clk 0:46:32]} 47... Ke4 {[%clk 0:32:59]} 48.
Kb6 {[%clk 0:46:56]} 48... Kd3 {[%clk 0:32:54]} 49. Kb7 {[%clk 0:47:13]} 49...
Rh8 {[%clk 0:33:19]} 50. a7 {[%clk 0:47:35]} 50... e2 {[%clk 0:33:46]} 51. Rxe2
{[%clk 0:47:59]} 1/2-1/2

[Variant "Standard"]
[Site "Europe Echecs"]

[Event "Championnat du monde jeunes U10"]
[Date "2024.11.19"]
[White "Mulay, Vivan Prakash"]
[Black "Ivanovic, Leonid"]
[WhiteElo "1823"]
[BlackElo "1990"]
[Round "5.11"]
[Result "1/2-1/2"]
[TimeControl "5400+30"]

1. e4 {[%clk 1:30:57]} 1... c5 {[%clk 1:30:43]} 2. Nf3 {[%clk 1:31:21]} 2... e6
{[%clk 1:30:44]} 3. b3 {[%clk 1:31:46]} 3... b6 {[%clk 1:20:02]} 4. d4 {[%clk
1:30:25]} 4... cxd4 {[%clk 1:15:59]} 5. Nxd4 {[%clk 1:30:21]} 5... Bb7 {[%clk
1:13:44]} 6. Nd2 {[%clk 1:30:32]} 6... Qc7 {[%clk 1:08:15]} 7. Bb2 {[%clk
1:30:15]} 7... a6 {[%clk 1:07:30]} 8. Bd3 {[%clk 1:29:42]} 8... Nf6 {[%clk
1:06:21]} 9. O-O {[%clk 1:29:47]} 9... d5 {[%clk 0:58:26]} 10. exd5 {[%clk
1:28:09]} 10... Bxd5 {[%clk 0:57:46]} 11. c4 {[%clk 1:18:27]} 11... Bb7 {[%clk
0:56:39]} 12. Re1 {[%clk 1:18:29]} 12... Be7 {[%clk 0:52:12]} 13. Qe2 {[%clk
1:10:55]} 13... Nc6 {[%clk 0:41:24]} 14. Ne4 {[%clk 0:58:32]} 14... Qf4 {[%clk
0:26:13]} 15. g3 {[%clk 0:54:54]} 15... Nxd4 {[%clk 0:21:45]} 16. Bxd4 {[%clk
0:54:28]} 16... Qc7 {[%clk 0:22:06]} 17. Nxf6+ {[%clk 0:54:11]} 17... Bxf6
{[%clk 0:22:10]} 18. Bxf6 {[%clk 0:52:31]} 18... gxf6 {[%clk 0:22:38]} 19. Rad1
{[%clk 0:52:22]} 19... O-O-O {[%clk 0:16:00]} 20. Be4 {[%clk 0:44:08]} 20... f5
{[%clk 0:14:47]} 21. Bxb7+ {[%clk 0:44:06]} 21... Kxb7 {[%clk 0:15:07]} 22. b4
{[%clk 0:41:53]} 22... Ka7 {[%clk 0:12:00]} 23. Rc1 {[%clk 0:39:56]} 23... h5
{[%clk 0:07:54]} 24. c5 {[%clk 0:38:55]} 24... h4 {[%clk 0:07:56]} 25. cxb6+
{[%clk 0:37:31]} 25... Qxb6 {[%clk 0:08:25]} 26. Qe5 {[%clk 0:37:59]} 26... hxg3
{[%clk 0:07:16]} 27. hxg3 {[%clk 0:37:54]} 27... Qb7 {[%clk 0:05:51]} 28. Qc5+
{[%clk 0:31:23]} 28... Ka8 {[%clk 0:06:11]} 29. Qc6 {[%clk 0:31:44]} 29... Rd6
{[%clk 0:05:53]} 30. Qxb7+ {[%clk 0:29:27]} 30... Kxb7 {[%clk 0:06:22]} 31. Rc4
{[%clk 0:24:35]} 31... Rhd8 {[%clk 0:05:26]} 32. Kg2 {[%clk 0:24:36]} 32... Rd2
{[%clk 0:01:09]} 33. a4 {[%clk 0:24:53]} 33... Ra2 {[%clk 0:00:46]} 34. a5
{[%clk 0:23:35]} 34... Rdd2 {[%clk 0:00:57]} 35. Rf4 {[%clk 0:23:49]} 35... Kc6
{[%clk 0:00:51]} 36. Re5 {[%clk 0:22:58]} 36... Rd5 {[%clk 0:00:35]} 37. Rc4+
{[%clk 0:22:57]} 37... Kb5 {[%clk 0:00:44]} 38. Rxd5+ {[%clk 0:18:30]} 38...
exd5 {[%clk 0:00:56]} 39. Rd4 {[%clk 0:17:34]} 39... Kc6 {[%clk 0:01:03]} 40.
Rf4 {[%clk 0:15:05]} 40... Kd6 {[%clk 0:00:39]} 41. Rxf5 {[%clk 0:15:21]} 41...
Ke6 {[%clk 0:01:09]} 42. g4 {[%clk 0:11:00]} 42... Rc2 {[%clk 0:00:38]} 43. Kg3
{[%clk 0:10:17]} 43... Rc3+ {[%clk 0:00:32]} 44. f3 {[%clk 0:08:21]} 44... f6
{[%clk 0:00:34]} 45. Rh5 {[%clk 0:06:30]} 45... d4 {[%clk 0:00:34]} 46. b5
{[%clk 0:05:58]} 46... d3 {[%clk 0:00:34]} 47. Kf2 {[%clk 0:06:23]} 47... d2
{[%clk 0:00:35]} 48. Ke2 {[%clk 0:06:49]} 48... Rd3 {[%clk 0:00:34]} 49. Kd1
{[%clk 0:06:33]} 49... axb5 {[%clk 0:00:39]} 50. Rxb5 {[%clk 0:02:07]} 50...
Rxf3 {[%clk 0:01:07]} 51. Kxd2 {[%clk 0:01:40]} 51... Rg3 {[%clk 0:00:45]} 52.
Rb4 {[%clk 0:01:38]} 52... Ra3 {[%clk 0:00:35]} 53. Rb6+ {[%clk 0:01:53]} 53...
Ke5 {[%clk 0:00:53]} 54. a6 {[%clk 0:01:34]} 54... Ra4 {[%clk 0:01:02]} 55. Kc3
{[%clk 0:01:02]} 55... Rxg4 {[%clk 0:01:14]} 56. Rb5+ {[%clk 0:01:07]} 56... Kd6
{[%clk 0:00:49]} 57. Kb3 {[%clk 0:01:34]} 57... Rg1 {[%clk 0:00:42]} 58. Kb4
{[%clk 0:00:50]} 58... Rb1+ {[%clk 0:00:41]} 59. Ka5 {[%clk 0:01:00]} 59...
Rxb5+ {[%clk 0:00:50]} 60. Kxb5 {[%clk 0:01:20]} 60... Kc7 {[%clk 0:01:18]}
1/2-1/2

[Variant "Standard"]
[Site "Europe Echecs"]

[Event "Championnat du monde jeunes U10"]
[Date "2024.11.19"]
[White "Ramesan, Raunak Amit"]
[Black "Ling, Chenxuan"]
[WhiteElo "1802"]
[BlackElo "1967"]
[Round "5.12"]
[Result "0-1"]
[TimeControl "5400+30"]

1. e4 {[%clk 1:30:57]} 1... e6 {[%clk 1:30:45]} 2. d4 {[%clk 1:31:19]} 2... d5
{[%clk 1:31:11]} 3. e5 {[%clk 1:31:43]} 3... c5 {[%clk 1:31:36]} 4. c3 {[%clk
1:32:09]} 4... Nc6 {[%clk 1:32:00]} 5. Nf3 {[%clk 1:32:35]} 5... Bd7 {[%clk
1:32:11]} 6. Be2 {[%clk 1:32:58]} 6... f6 {[%clk 1:32:36]} 7. O-O {[%clk
1:33:22]} 7... fxe5 {[%clk 1:32:59]} 8. Nxe5 {[%clk 1:33:43]} 8... Nxe5 {[%clk
1:33:25]} 9. dxe5 {[%clk 1:34:05]} 9... Qc7 {[%clk 1:33:48]} 10. Re1 {[%clk
1:31:27]} 10... O-O-O {[%clk 1:33:34]} 11. Bd3 {[%clk 1:28:36]} 11... Ne7 {[%clk
1:31:15]} 12. Bd2 {[%clk 1:20:47]} 12... Nc6 {[%clk 1:27:30]} 13. Qe2 {[%clk
1:19:57]} 13... Be7 {[%clk 1:23:33]} 14. a4 {[%clk 1:16:58]} 14... c4 {[%clk
1:20:58]} 15. Bc2 {[%clk 1:17:16]} 15... Rdf8 {[%clk 1:20:59]} 16. Na3 {[%clk
1:14:55]} 16... a6 {[%clk 1:18:24]} 17. b4 {[%clk 1:08:36]} 17... cxb3 {[%clk
1:06:59]} 18. Bxb3 {[%clk 1:06:43]} 18... Rf5 {[%clk 1:05:29]} 19. Nc2 {[%clk
0:51:31]} 19... Rxe5 {[%clk 1:04:31]} 20. Qd3 {[%clk 0:50:26]} 20... Rxe1+
{[%clk 1:02:17]} 21. Rxe1 {[%clk 0:50:24]} 21... Rf8 {[%clk 1:02:33]} 22. c4
{[%clk 0:48:17]} 22... Ne5 {[%clk 0:56:02]} 23. Qxh7 {[%clk 0:43:19]} 23... Qb6
{[%clk 0:41:30]} 24. Be3 {[%clk 0:41:03]} 24... Qxb3 {[%clk 0:40:38]} 25. Nd4
{[%clk 0:41:14]} 25... Qb4 {[%clk 0:40:01]} 26. Rb1 {[%clk 0:41:09]} 26... Qd6
{[%clk 0:38:19]} 27. c5 {[%clk 0:41:16]} 27... Qc7 {[%clk 0:37:48]} 28. Qxg7
{[%clk 0:41:17]} 28... Nc6 {[%clk 0:36:33]} 29. Nb5 {[%clk 0:40:14]} 29... axb5
{[%clk 0:36:31]} 30. axb5 {[%clk 0:40:38]} 30... Qe5 {[%clk 0:36:41]} 31. Qh7
{[%clk 0:40:18]} 31... Rh8 {[%clk 0:36:12]} 32. Qc2 {[%clk 0:40:00]} 32... Qxh2+
{[%clk 0:36:08]} 33. Kf1 {[%clk 0:40:30]} 33... Qh1+ {[%clk 0:35:55]} 34. Ke2
{[%clk 0:40:59]} 34... Qxg2 {[%clk 0:36:17]} 35. Qa4 {[%clk 0:40:43]} 35... Qe4
{[%clk 0:34:55]} 36. Qa8+ {[%clk 0:38:02]} 36... Nb8 {[%clk 0:35:17]} 37. c6
{[%clk 0:36:40]} 37... Qc2+ {[%clk 0:35:11]} 38. Kf3 {[%clk 0:36:56]} 38... Rf8+
{[%clk 0:35:35]} 39. Kg2 {[%clk 0:37:20]} 39... Rg8+ {[%clk 0:36:00]} 40. Kf3
{[%clk 0:37:43]} 40... Rf8+ {[%clk 0:36:08]} 41. Kg2 {[%clk 0:38:08]} 41... Qg6+
{[%clk 0:36:34]} 42. Bg5 {[%clk 0:38:05]} 42... Qxg5+ {[%clk 0:36:09]} 43. Kf1
{[%clk 0:38:29]} 43... Bxc6 {[%clk 0:36:25]} 44. bxc6 {[%clk 0:38:45]} 44...
Rxf2+ {[%clk 0:36:48]} 45. Kxf2 {[%clk 0:38:50]} 45... Qf5+ {[%clk 0:37:04]} 46.
Kg3 {[%clk 0:38:55]} 46... Bd6+ {[%clk 0:37:14]} 47. Kh4 {[%clk 0:39:02]} 47...
Qxb1 {[%clk 0:37:09]} 48. cxb7+ {[%clk 0:39:14]} 48... Qxb7 {[%clk 0:37:25]} 49.
Qa4 {[%clk 0:39:35]} 49... Qb4+ {[%clk 0:37:50]} 0-1

[Variant "Standard"]
[Site "Europe Echecs"]

[Event "Championnat du monde jeunes U10"]
[Date "2024.11.19"]
[White "Liu, Liam"]
[Black "Zhauynbay, Alimzhan"]
[WhiteElo "1783"]
[BlackElo "1953"]
[Round "5.13"]
[Result "0-1"]
[TimeControl "5400+30"]

1. d4 {[%clk 1:30:57]} 1... Nf6 {[%clk 1:30:51]} 2. c4 {[%clk 1:31:22]} 2... g6
{[%clk 1:31:15]} 3. Nc3 {[%clk 1:31:46]} 3... Bg7 {[%clk 1:31:37]} 4. e4 {[%clk
1:32:10]} 4... d6 {[%clk 1:31:44]} 5. Nf3 {[%clk 1:32:18]} 5... O-O {[%clk
1:32:08]} 6. Be2 {[%clk 1:32:39]} 6... e5 {[%clk 1:32:24]} 7. Be3 {[%clk
1:33:02]} 7... Ng4 {[%clk 1:31:22]} 8. Bg5 {[%clk 1:33:07]} 8... f6 {[%clk
1:31:47]} 9. Bh4 {[%clk 1:33:28]} 9... Nc6 {[%clk 1:31:57]} 10. d5 {[%clk
1:33:44]} 10... Ne7 {[%clk 1:32:21]} 11. Nd2 {[%clk 1:33:59]} 11... f5 {[%clk
1:32:17]} 12. Bxg4 {[%clk 1:16:40]} 12... fxg4 {[%clk 1:32:46]} 13. O-O {[%clk
1:16:41]} 13... h6 {[%clk 1:29:08]} 14. f3 {[%clk 1:12:19]} 14... g5 {[%clk
1:26:53]} 15. Bf2 {[%clk 1:10:32]} 15... gxf3 {[%clk 1:25:37]} 16. Nxf3 {[%clk
1:10:48]} 16... Ng6 {[%clk 1:23:35]} 17. Be3 {[%clk 1:10:21]} 17... g4 {[%clk
1:20:03]} 18. Nd2 {[%clk 1:10:28]} 18... b6 {[%clk 1:15:18]} 19. g3 {[%clk
1:06:00]} 19... Bd7 {[%clk 1:09:36]} 20. Rxf8+ {[%clk 1:04:06]} 20... Qxf8
{[%clk 1:07:45]} 21. Qe2 {[%clk 1:04:12]} 21... h5 {[%clk 1:05:44]} 22. Rf1
{[%clk 1:04:19]} 22... Qe7 {[%clk 1:05:11]} 23. h4 {[%clk 1:01:43]} 23... Bf6
{[%clk 0:52:51]} 24. b4 {[%clk 1:00:01]} 24... a5 {[%clk 0:45:36]} 25. a3 {[%clk
1:00:00]} 25... axb4 {[%clk 0:43:57]} 26. axb4 {[%clk 1:00:21]} 26... Nf4 {[%clk
0:41:41]} 27. gxf4 {[%clk 0:41:13]} 27... exf4 {[%clk 0:41:51]} 28. e5 {[%clk
0:40:03]} 28... Bxe5 {[%clk 0:37:42]} 29. Bxf4 {[%clk 0:38:58]} 29... Bd4+
{[%clk 0:37:24]} 30. Kg2 {[%clk 0:36:59]} 30... Qxh4 {[%clk 0:37:29]} 31. Rh1
{[%clk 0:33:49]} 31... Qf6 {[%clk 0:37:14]} 32. Be3 {[%clk 0:29:08]} 32... Bxc3
{[%clk 0:35:54]} 33. Ne4 {[%clk 0:27:23]} 33... Qf3+ {[%clk 0:34:34]} 34. Qxf3
{[%clk 0:27:39]} 34... gxf3+ {[%clk 0:35:03]} 35. Kxf3 {[%clk 0:27:32]} 35...
Bg4+ {[%clk 0:35:22]} 36. Kf4 {[%clk 0:27:17]} 36... Be5+ {[%clk 0:33:58]} 37.
Kg5 {[%clk 0:27:32]} 37... Bf3 {[%clk 0:33:49]} 38. Rh4 {[%clk 0:27:46]} 38...
Kg7 {[%clk 0:32:45]} 39. Bf4 {[%clk 0:27:28]} 39... Bd4 {[%clk 0:32:42]} 40. Bd2
{[%clk 0:27:21]} 40... Re8 {[%clk 0:31:31]} 41. Nxd6 {[%clk 0:24:06]} 41... Bf6+
{[%clk 0:31:46]} 42. Kf5 {[%clk 0:24:01]} 42... cxd6 {[%clk 0:32:01]} 43. Bh6+
{[%clk 0:24:21]} 43... Kf7 {[%clk 0:32:00]} 44. Rh2 {[%clk 0:24:22]} 44... Bg4+
{[%clk 0:32:25]} 45. Kf4 {[%clk 0:24:24]} 45... Be5+ {[%clk 0:32:50]} 46. Ke3
{[%clk 0:24:48]} 46... Bxh2+ {[%clk 0:33:14]} 47. Kd4 {[%clk 0:25:14]} 47...
Bg1+ {[%clk 0:33:22]} 48. Kc3 {[%clk 0:25:39]} 48... Be3 {[%clk 0:33:42]} 49. b5
{[%clk 0:25:50]} 49... Bxh6 {[%clk 0:34:06]} 50. c5 {[%clk 0:26:16]} 50... dxc5
{[%clk 0:34:31]} 51. Kc4 {[%clk 0:26:39]} 51... Re3 {[%clk 0:34:52]} 52. d6
{[%clk 0:26:57]} 52... Be6# {[%clk 0:35:20]} 0-1

[Variant "Standard"]
[Site "Europe Echecs"]

[Event "Championnat du monde jeunes U10"]
[Date "2024.11.19"]
[White "Larion, Iustin"]
[Black "Seo, Juwon"]
[WhiteElo "1925"]
[BlackElo "1721"]
[Round "5.14"]
[Result "0-1"]
[TimeControl "5400+30"]

1. d4 {[%clk 1:30:50]} 1... Nf6 {[%clk 1:30:52]} 2. Nf3 {[%clk 1:31:04]} 2... e6
{[%clk 1:30:53]} 3. c4 {[%clk 1:31:28]} 3... d5 {[%clk 1:31:18]} 4. Nc3 {[%clk
1:31:48]} 4... Be7 {[%clk 1:31:42]} 5. Bg5 {[%clk 1:32:07]} 5... O-O {[%clk
1:31:58]} 6. e3 {[%clk 1:31:56]} 6... Nbd7 {[%clk 1:30:43]} 7. Bd3 {[%clk
1:31:21]} 7... h6 {[%clk 1:29:22]} 8. Bh4 {[%clk 1:30:04]} 8... c5 {[%clk
1:28:57]} 9. cxd5 {[%clk 1:26:06]} 9... Nxd5 {[%clk 1:25:30]} 10. Bxe7 {[%clk
1:23:01]} 10... Qxe7 {[%clk 1:17:22]} 11. O-O {[%clk 1:20:59]} 11... b6 {[%clk
1:02:39]} 12. Nxd5 {[%clk 1:12:58]} 12... exd5 {[%clk 1:02:37]} 13. Rc1 {[%clk
1:13:14]} 13... Bb7 {[%clk 0:53:16]} 14. Qe2 {[%clk 1:07:11]} 14... Rac8 {[%clk
0:46:49]} 15. Rfd1 {[%clk 1:05:31]} 15... Rfe8 {[%clk 0:31:48]} 16. b3 {[%clk
0:56:35]} 16... g6 {[%clk 0:20:56]} 17. Bb5 {[%clk 0:49:32]} 17... Red8 {[%clk
0:20:06]} 18. h3 {[%clk 0:38:37]} 18... Nf6 {[%clk 0:18:20]} 19. Ne5 {[%clk
0:33:23]} 19... Ne4 {[%clk 0:16:06]} 20. Qf3 {[%clk 0:31:42]} 20... Kg7 {[%clk
0:08:19]} 21. Qf4 {[%clk 0:28:25]} 21... cxd4 {[%clk 0:04:57]} 22. Rxc8 {[%clk
0:19:37]} 22... Rxc8 {[%clk 0:05:22]} 23. Rxd4 {[%clk 0:19:30]} 23... Rc1+
{[%clk 0:04:37]} 24. Kh2 {[%clk 0:19:55]} 24... Nxf2 {[%clk 0:03:46]} 25. Qxf2
{[%clk 0:11:44]} 25... Qxe5+ {[%clk 0:04:08]} 26. g3 {[%clk 0:06:03]} 26... Qc7
{[%clk 0:03:58]} 27. Rc4 {[%clk 0:04:40]} 27... Rh1+ {[%clk 0:02:59]} 28. Kxh1
{[%clk 0:05:00]} 28... dxc4+ {[%clk 0:03:24]} 29. Kh2 {[%clk 0:04:51]} 29...
cxb3 {[%clk 0:02:27]} 30. axb3 {[%clk 0:05:19]} 30... Qc1 {[%clk 0:01:42]} 31.
e4 {[%clk 0:03:51]} 31... Qd1 {[%clk 0:00:57]} 32. Bc4 {[%clk 0:03:03]} 32...
Qd7 {[%clk 0:01:09]} 33. Qe2 {[%clk 0:01:50]} 33... Qd4 {[%clk 0:00:49]} 34. Bd3
{[%clk 0:01:41]} 34... Qe5 {[%clk 0:01:08]} 35. Qc2 {[%clk 0:01:30]} 35... b5
{[%clk 0:00:55]} 36. h4 {[%clk 0:00:55]} 36... a6 {[%clk 0:00:56]} 37. Kh3
{[%clk 0:00:41]} 37... Qe6+ {[%clk 0:00:51]} 38. Kg2 {[%clk 0:00:46]} 38... Qe5
{[%clk 0:01:05]} 39. Kh2 {[%clk 0:00:39]} 39... Qd4 {[%clk 0:01:07]} 40. Qe2
{[%clk 0:00:48]} 40... b4 {[%clk 0:00:49]} 41. Qc2 {[%clk 0:00:45]} 41... Qc3
{[%clk 0:00:40]} 42. Qd1 {[%clk 0:00:35]} 42... Qb2+ {[%clk 0:00:47]} 43. Kh3
{[%clk 0:00:32]} 43... Bc8+ {[%clk 0:01:10]} 44. g4 {[%clk 0:00:56]} 44... h5
{[%clk 0:01:26]} 45. Kg3 {[%clk 0:00:44]} 45... Bxg4 {[%clk 0:01:26]} 46. Qf1
{[%clk 0:01:03]} 46... Qxb3 {[%clk 0:01:20]} 47. Qa1+ {[%clk 0:00:45]} 47... Kh7
{[%clk 0:01:06]} 48. Qf1 {[%clk 0:00:33]} 48... a5 {[%clk 0:01:04]} 49. Kh2
{[%clk 0:00:38]} 49... a4 {[%clk 0:01:02]} 50. Bc4 {[%clk 0:00:47]} 50... Qb2+
{[%clk 0:00:37]} 51. Kh1 {[%clk 0:00:46]} 51... f5 {[%clk 0:00:40]} 52. Qf4
{[%clk 0:00:38]} 52... Qb1+ {[%clk 0:00:52]} 53. Kh2 {[%clk 0:00:59]} 53... Qc2+
{[%clk 0:01:17]} 54. Kg1 {[%clk 0:01:15]} 54... Qxc4 {[%clk 0:01:33]} 55. Qe5
{[%clk 0:01:22]} 55... Qc1+ {[%clk 0:01:49]} 56. Kh2 {[%clk 0:01:13]} 56... Qd2+
{[%clk 0:02:15]} 57. Kg1 {[%clk 0:01:34]} 57... Qd7 {[%clk 0:02:31]} 58. exf5
{[%clk 0:01:40]} 58... Bxf5 {[%clk 0:02:54]} 59. Qe3 {[%clk 0:02:03]} 59... b3
{[%clk 0:03:16]} 60. Qe1 {[%clk 0:02:15]} 60... b2 {[%clk 0:03:41]} 0-1

[Variant "Standard"]
[Site "Europe Echecs"]